bitfinex/quotes_ETHUSD_20250715
["timestamp","ask_amount","ask_price","bid_price","bid_amount"]
[1752571150519,3.90109413,2984.1,2982.7,0.25564466]
[1752571150520,13.90210512,2983.2,2982.7,0.25564466]
[1752571150842,19.00310512,2983.2,2982.9,0.4415]
[1752571151207,19.00310512,2983.2,2983.0,0.6715]
[1752571151208,13.90210512,2983.2,2983.0,0.6715]
[1752571151414,19.00810512,2983.2,2983.1,0.4815]
[1752571151728,5.106,2983.2,2983.1,0.4815]
[1752571152313,8.45810512,2983.2,2983.1,0.4815]
[1752571152513,5.106,2983.2,2983.1,0.4815]
[1752571153320,3.90167619,2983.6,2983.1,0.4815]
[1752571153321,3.35182154,2983.5,2983.1,0.4815]
[1752571153521,0.1672,2983.2,2983.1,0.4815]
[1752571153854,3.35168029,2983.6,2983.1,3.83369181]
[1752571154053,0.1672,2983.4,2983.2,6.911889]
[1752571154241,5.106,2983.3,2983.1,1.13757698]
[1752571154640,5.2732,2983.3,2983.1,1.13757698]
[1752571154951,8.62519275,2983.3,2983.2,0.4415]
[1752571155923,3.35210512,2983.2,2983.1,0.04]
[1752571156126,3.35210512,2983.2,2983.1,0.4815]
[1752571156328,3.35210512,2983.2,2983.1,0.04]
[1752571157317,3.35210512,2983.2,2983.1,0.4815]
[1752571157918,8.46010512,2983.2,2983.1,0.4815]
[1752571158834,5.108,2983.2,2983.1,0.4815]
[1752571159359,5.108,2983.2,2983.1,1.2438389]
[1752571159360,5.11,2983.2,2983.1,1.2438389]
[1752571159511,5.109,2983.2,2983.1,1.2438389]
[1752571159715,0.1672,2983.3,2983.1,1.2438389]
[1752571159912,5.109,2983.2,2983.1,0.8023389]
[1752571160556,5.109,2983.2,2983.1,1.2438389]
[1752571161264,5.109,2983.2,2983.1,0.4815]
[1752571161987,8.46110512,2983.2,2983.1,0.04]
[1752571162117,8.46110512,2983.2,2983.1,0.4815]
[1752571162631,8.46010512,2983.2,2983.1,0.4815]
[1752571163762,5.108,2983.2,2983.1,0.4815]
[1752571164124,5.109,2983.2,2983.1,0.4815]
[1752571164328,8.46110512,2983.2,2983.1,0.4815]
[1752571164652,5.109,2983.2,2983.1,0.4815]
[1752571165260,8.46110512,2983.2,2983.1,0.4815]
[1752571165829,5.109,2983.2,2983.1,0.4815]
[1752571166857,8.46110512,2983.2,2983.1,0.4815]
[1752571167225,8.46110512,2983.2,2983.1,0.04]
[1752571167432,9.62360669,2983.2,2983.1,0.04]
[1752571169829,9.62360669,2983.2,2982.6,0.001]
[1752571169830,0.55,2981.9,2981.1,0.04]
[1752571170067,0.7535,2982.0,2981.1,0.04]
[1752571170068,5.108,2981.8,2981.2,1.1139]
[1752571170259,3.35391436,2981.6,2981.3,0.4434]
[1752571170444,5.142,2981.5,2981.4,0.7584289]
[1752571170955,5.142,2981.7,2981.5,0.6705]
[1752571171142,5.142,2981.7,2981.5,0.70404016]
[1752571171344,5.142,2981.8,2981.6,0.4434]
[1752571171752,3.35390394,2981.6,2981.5,0.6705]
[1752571172167,5.142,2981.6,2981.5,0.6705]
[1752571172377,5.142,2981.6,2981.5,1.1139]
[1752571173393,5.143,2981.7,2981.5,1.1139]
[1752571173686,5.143,2981.7,2981.6,0.4434]
[1752571176192,8.49679146,2981.7,2981.6,0.4434]
[1752571178936,5.143,2981.7,2981.3,0.6106]
[1752571179141,3.35410138,2981.5,2981.3,0.1672]
[1752571179341,8.49210138,2981.5,2981.3,0.1672]
[1752571179659,8.49210138,2981.5,2981.4,0.4434]
[1752571182477,8.65930138,2981.5,2981.4,0.4434]
[1752571184146,8.65930138,2981.5,2981.4,0.4444]
[1752571186278,8.65930138,2981.5,2981.4,0.001]
[1752571186580,9.86062276,2981.5,2981.4,0.001]
[1752571187761,10.30362276,2981.5,2981.4,0.001]
[1752571190598,5.16562276,2981.5,2981.4,0.001]
[1752571190773,10.29862276,2981.5,2981.4,0.001]
[1752571192188,3.35435395,2981.2,2981.1,0.04]
[1752571192491,19.83035395,2981.2,2981.1,0.04]
[1752571192875,20.27335395,2981.2,2981.1,0.04]
[1752571194001,20.27235395,2981.2,2981.1,0.04]
[1752571194305,14.14535395,2981.2,2981.1,0.04]
[1752571194504,20.44185552,2981.2,2981.1,0.04]
[1752571195056,21.43485552,2981.2,2981.1,0.04]
[1752571196099,16.30085552,2981.2,2981.1,0.04]
[1752571196403,21.43385552,2981.2,2981.1,0.04]
[1752571196773,3.3553669,2980.3,2980.2,0.6715]
[1752571196978,8.6555669,2980.3,2980.2,0.001]
[1752571197188,5.3002,2980.3,2980.2,0.001]
[1752571197354,8.6555669,2980.3,2980.2,0.4444]
[1752571198195,5.3002,2980.3,2980.2,0.4444]
[1752571201260,5.131,2980.4,2980.3,3.3553669]
[1752571201523,0.1672,2980.6,2980.4,3.35523713]
[1752571201820,0.1672,2980.6,2980.5,10.9434552]
[1752571202025,8.052,2981.4,2980.8,3.35479003]
[1752571202026,0.1672,2980.9,2980.8,3.35479003]
[1752571202212,0.1672,2980.9,2980.8,0.4303]
[1752571202416,5.3002,2980.9,2980.8,0.4303]
[1752571202991,8.65494798,2980.9,2980.5,0.6705]
[1752571203192,9.35324278,2980.9,2980.5,1.1008]
[1752571203406,3.52222918,2980.6,2980.5,0.4303]
[1752571203628,8.65522918,2980.6,2980.5,0.4303]
[1752571204036,5.3002,2980.6,2980.3,1.1008]
[1752571204192,5.3002,2980.6,2980.5,0.4303]
[1752571204530,5.2992,2980.6,2980.5,0.4303]
[1752571207688,0.1672,2980.6,2980.5,0.4303]
[1752571207945,5.2972,2980.6,2980.5,0.4303]
[1752571209515,8.65222918,2980.6,2980.3,0.6705]
[1752571209698,8.48504425,2980.6,2980.2,0.001]
[1752571209948,3.52250333,2980.4,2980.2,0.4313]
[1752571210248,8.4833669,2980.3,2980.2,0.001]
[1752571210414,8.6505669,2980.3,2980.2,0.001]
[1752571210995,5.2952,2980.3,2980.2,0.001]
[1752571211293,8.6505669,2980.3,2980.2,0.001]
[1752571212427,5.2952,2980.3,2980.2,0.001]
[1752571212661,0.1672,2980.3,2980.2,0.4313]
[1752571212863,0.7519,2981.3,2980.7,0.6705]
[1752571213141,0.1672,2980.9,2980.8,0.4303]
[1752571213309,5.2982,2980.9,2980.8,0.4303]
[1752571213936,5.131,2980.9,2980.8,3.78510407]
[1752571214130,0.1672,2981.2,2980.8,1.21471634]
[1752571214338,0.1672,2981.2,2981.1,3.35446647]
[1752571214639,4.25493815,2981.8,2981.2,3.35433781]
[1752571214841,4.25493815,2981.8,2981.3,3.7845077]
[1752571214842,0.1672,2981.5,2981.3,3.7845077]
[1752571215073,0.9012154,2981.9,2981.4,13.54634699]
[1752571215349,0.1672,2981.8,2981.5,0.46384016]
[1752571215501,5.133,2981.9,2981.8,3.35367898]
[1752571215908,0.002,2982.0,2981.8,3.78397898]
[1752571216103,0.002,2982.0,2981.8,3.35367898]
[1752571216309,0.002,2982.0,2981.9,0.4303]
[1752571217353,0.002,2982.0,2981.9,3.78386651]
[1752571218024,0.002,2982.0,2981.9,0.4303]
[1752571218226,0.002,2982.0,2981.9,3.78386651]
[1752571218541,0.002,2982.0,2981.9,4.19319453]
[1752571218858,0.002,2982.0,2981.9,0.83962802]
[1752571219032,0.002,2982.0,2981.9,0.4303]
[1752571219757,0.002,2982.0,2981.9,3.78386651]
[1752571220119,0.002,2982.0,2981.9,3.95106651]
[1752571221692,0.002,2982.0,2981.9,14.62156651]
[1752571226165,0.002,2982.0,2981.9,3.52076651]
[1752571226370,0.002,2982.0,2981.9,4.63851104]
[1752571227400,0.002,2982.0,2981.9,4.6720467]
[1752571228014,0.002,2982.0,2981.9,4.63851104]
[1752571228603,0.002,2982.0,2981.9,1.28494453]
[1752571229016,0.002,2982.0,2981.9,1.11774453]
[1752571229531,0.002,2982.0,2981.9,4.47131104]
[1752571229836,0.002,2982.0,2981.9,1.11774453]
[1752571230037,0.002,2982.0,2981.9,0.68744453]
[1752571230224,0.002,2982.0,2981.9,4.04101104]
[1752571230424,0.002,2982.0,2981.9,4.47241104]
[1752571230732,0.002,2982.0,2981.9,4.5059467]
[1752571230937,0.002,2982.0,2981.9,4.47241104]
[1752571231738,0.002,2982.0,2981.9,1.11884453]
[1752571231940,0.002,2982.0,2981.8,10.1672]
[1752571232102,0.002,2982.0,2981.8,0.1672]
[1752571232443,0.002,2982.0,2981.6,4.45575677]
[1752571232444,0.002,2982.0,2981.6,9.74595677]
[1752571232639,0.002,2982.0,2981.7,0.4314]
[1752571233007,0.002,2982.0,2981.7,3.78516514]
[1752571234003,0.002,2982.0,2981.8,3.81859312]
[1752571234962,0.002,2982.0,2981.9,3.35356651]
[1752571235112,0.002,2982.0,2981.9,3.78496651]
[1752571238343,0.002,2982.0,2981.9,4.49883016]
[1752571239677,0.002,2982.0,2981.9,14.49883016]
[1752571239950,0.002,2982.0,2981.9,24.89770694]
[1752571248996,0.002,2982.0,2981.9,21.6464134]
[1752571249795,0.002,2982.0,2981.9,21.8136134]
[1752571252302,0.002,2982.0,2981.9,14.90513016]
[1752571252511,0.002,2982.0,2981.9,0.1672]
[1752571252660,1.2312,2982.0,2981.4,6.47708324]
[1752571252859,4.58471169,2982.0,2981.6,0.1672]
[1752571253088,4.58471169,2982.0,2981.7,5.115]
[1752571253089,0.458,2981.9,2981.7,5.115]
[1752571253285,0.7732,2982.0,2981.7,5.115]
[1752571253286,1.2312,2982.0,2981.7,5.115]
[1752571253493,0.002,2982.0,2981.9,3.35356651]
[1752571253798,0.002,2982.0,2981.9,18.90096651]
[1752571253977,0.002,2982.0,2981.9,13.52076651]
[1752571254185,0.002,2982.0,2981.9,8.63576651]
[1752571254358,0.002,2982.0,2981.9,3.52076651]
[1752571254553,0.002,2982.0,2981.9,5.2822]
[1752571256886,0.002,2982.0,2981.9,8.66930217]
[1752571257090,0.002,2982.0,2981.9,8.63576651]
[1752571258307,0.002,2982.0,2981.9,5.2822]
[1752571258536,0.7775,2982.0,2981.9,5.114]
[1752571259724,1.2467,2982.0,2981.9,5.114]
[1752571259925,1.2467,2982.0,2981.9,5.112]
[1752571261038,0.7775,2982.0,2981.9,5.112]
[1752571261341,0.7775,2982.0,2981.9,8.46556651]
[1752571261841,0.7775,2982.0,2981.9,3.35356651]
[1752571262148,0.7775,2982.0,2981.9,8.46456651]
[1752571262642,0.7775,2982.0,2981.9,3.35356651]
[1752571262846,0.7775,2982.0,2981.9,8.46456651]
[1752571264823,0.7775,2982.0,2981.9,5.111]
[1752571265434,0.7775,2982.0,2981.9,8.46456651]
[1752571266653,0.7775,2982.0,2981.9,5.108]
[1752571267364,0.7775,2982.0,2981.9,8.46156651]
[1752571267656,0.002,2982.0,2981.9,8.91236651]
[1752571267840,0.002,2982.0,2981.9,10.15569013]
[1752571268464,0.002,2982.0,2981.9,10.82619013]
[1752571275143,0.002,2982.0,2981.9,20.82619013]
[1752571275348,0.002,2982.0,2981.9,30.54601938]
[1752571276939,0.002,2982.0,2981.9,27.30407927]
[1752571277573,0.002,2982.0,2981.9,1.24332362]
[1752571277803,0.4712,2982.0,2981.9,3.35356651]
[1752571278004,0.002,2982.0,2981.9,8.45556651]
[1752571281510,0.002,2982.0,2981.8,0.1672]
[1752571281709,0.4712,2982.0,2981.9,5.101]
[1752571282694,0.4712,2982.0,2981.9,5.1]
[1752571283216,3.82470946,2982.0,2981.9,5.1]
[1752571283417,4.62610946,2982.0,2981.9,5.1]
[1752571283646,4.79330946,2982.0,2981.9,5.1]
[1752571284105,1.4398,2982.0,2981.4,0.1672]
[1752571284305,0.4692,2981.9,2981.5,5.1]
[1752571284497,3.82276922,2981.9,2981.5,5.1]
[1752571284697,0.4692,2981.8,2981.6,5.1]
[1752571285834,3.35362165,2981.9,2981.7,5.1]
[1752571286250,12.33958914,2981.8,2981.0,0.001]
[1752571286450,0.7597,2981.6,2981.0,0.001]
[1752571286652,3.3541964,2981.4,2981.0,0.001]
[1752571286811,3.82325792,2981.5,2981.0,0.001]
[1752571287011,0.4692,2981.4,2981.0,8.52111079]
[1752571287212,0.7597,2981.6,2981.0,5.133]
[1752571287435,0.7597,2981.6,2981.1,6.5114338]
[1752571287750,0.7597,2981.6,2981.1,6.47788914]
[1752571288057,3.35554915,2982.0,2981.4,9.83199143]
[1752571288228,0.7685,2981.9,2981.4,14.96399143]
[1752571288411,0.7685,2981.9,2981.5,3.35394069]
[1752571288613,0.002,2982.0,2981.6,5.16653903]
[1752571288818,0.002,2982.0,2981.7,3.35371073]
[1752571289032,0.002,2982.0,2981.7,3.80451073]
[1752571289432,0.002,2982.0,2981.8,3.35366954]
[1752571289633,0.002,2982.0,2981.8,0.25240468]
[1752571289831,0.002,2982.0,2981.7,3.80454321]
[1752571291121,0.002,2982.0,2981.8,3.38721024]
[1752571291320,0.002,2982.0,2981.8,3.83031024]
[1752571292666,0.002,2982.0,2981.8,0.4431]
[1752571292840,0.002,2982.0,2981.7,3.35374391]
[1752571293358,0.002,2982.0,2981.8,0.03353678]
[1752571293564,0.002,2982.0,2981.6,5.133]
[1752571293773,3.78952729,2981.9,2981.3,3.35416362]
[1752571293972,1.2035,2981.8,2981.3,5.13]
[1752571294196,1.2035,2981.8,2981.2,5.13]
[1752571294197,3.35397634,2981.6,2981.2,5.13]
[1752571294466,0.4359,2981.5,2981.2,5.13]
[1752571294964,1.2336,2981.4,2981.1,3.35436699]
[1752571295154,0.7977,2981.4,2981.1,3.83111113]
[1752571295465,0.7977,2981.4,2981.0,5.132]
[1752571295639,0.7977,2981.4,2981.0,8.48654828]
[1752571295844,0.7977,2981.4,2981.1,3.35445655]
[1752571296199,0.7977,2981.4,2981.0,5.132]
[1752571296401,0.4359,2981.3,2981.0,0.001]
[1752571296603,3.95743429,2981.3,2981.0,0.001]
[1752571296751,0.4359,2981.2,2981.0,0.001]
[1752571297302,0.1672,2981.1,2981.0,0.001]
[1752571298297,0.1672,2981.1,2981.0,3.798679]
[1752571298457,0.7977,2981.4,2981.0,3.798679]
[1752571298657,0.1672,2981.3,2981.0,3.798679]
[1752571299350,0.1672,2981.3,2981.1,3.3543986]
[1752571299944,0.1672,2981.3,2981.0,10.27651981]
[1752571300594,0.1672,2981.3,2981.1,3.35443619]
[1752571300903,3.78960446,2981.8,2981.2,3.35435395]
[1752571301086,0.1672,2981.4,2981.2,3.35434387]
[1752571301765,0.1672,2981.4,2981.2,3.35434555]
[1752571301979,0.1672,2981.4,2981.1,3.83106285]
[1752571304870,0.1672,2981.4,2981.2,3.35434649]
[1752571307504,0.1672,2981.4,2981.3,3.35424143]
[1752571308789,0.1672,2981.4,2981.3,3.79734143]
[1752571309204,0.1672,2981.4,2981.3,3.35424143]
[1752571312400,0.1672,2981.4,2981.2,3.35435229]
[1752571313505,0.1672,2981.4,2981.3,3.35424143]
[1752571314510,0.77147003,2981.8,2981.6,3.35390394]
[1752571314511,0.1672,2981.8,2981.6,3.35390394]
[1752571314716,0.1672,2981.8,2981.7,9.8316806]
[1752571314888,0.1692,2982.0,2981.8,3.35367898]
[1752571315484,0.1692,2982.0,2981.7,3.83036314]
[1752571316488,0.1692,2982.0,2981.7,3.35372523]
[1752571316691,0.6051,2982.0,2981.6,3.35385404]
[1752571317317,0.6051,2982.0,2981.7,3.35378397]
[1752571318925,5.2862,2982.0,2981.7,3.35379146]
[1752571319275,5.7221,2982.0,2981.7,3.35379146]
[1752571320595,5.2862,2982.0,2981.8,3.3536557]
[1752571321127,5.2862,2982.0,2981.7,3.80408405]
[1752571321364,0.1692,2982.0,2981.8,3.80395635]
[1752571322332,0.1692,2982.0,2981.9,9.83145565]
[1752571322531,0.002,2982.0,2981.9,10.28175565]
[1752571323769,0.002,2982.0,2981.9,0.4503]
[1752571324067,0.002,2982.0,2981.8,3.3536042]
[1752571324386,0.002,2982.0,2981.9,3.35356651]
[1752571325328,0.002,2982.0,2981.8,3.80392155]
[1752571325526,0.002,2982.0,2981.9,3.35356651]
[1752571327161,0.002,2982.0,2981.8,3.80392599]
[1752571327355,0.002,2982.0,2981.9,3.35356651]
[1752571327977,0.002,2982.0,2981.8,3.80393662]
[1752571328167,0.002,2982.0,2981.9,3.35356651]
[1752571328786,0.002,2982.0,2981.8,0.4503]
[1752571328787,0.002,2982.0,2981.8,3.35361697]
[1752571329143,0.002,2982.0,2981.9,3.35356651]
[1752571331386,0.002,2982.0,2981.9,3.80386651]
[1752571331880,0.8343,2982.0,2981.6,8.46290392]
[1752571332086,0.8343,2982.0,2981.6,8.91320392]
[1752571332242,0.8343,2982.0,2981.7,3.35378426]
[1752571334601,0.8343,2982.0,2981.6,8.91311296]
[1752571334991,0.8343,2982.0,2981.7,3.35377132]
[1752571337276,0.8343,2982.0,2981.7,3.80407132]
[1752571337689,0.8343,2982.0,2981.5,0.1672]
[1752571337909,0.1672,2981.7,2981.4,8.46007023]
[1752571338273,0.1672,2981.7,2981.5,3.35399956]
[1752571338597,0.1672,2981.7,2981.5,3.80429956]
[1752571339310,0.1672,2981.7,2981.6,3.35390394]
[1752571339612,5.105,2981.9,2981.8,3.35367898]
[1752571339814,5.105,2981.9,2981.8,3.80397898]
[1752571339967,5.106,2982.0,2981.9,3.35356651]
[1752571340416,5.106,2982.0,2981.9,3.80386651]
[1752571340587,5.106,2982.0,2981.7,3.35379146]
[1752571341212,5.106,2982.0,2981.8,3.35366335]
[1752571341715,0.002,2982.0,2981.9,3.35356651]
[1752571341910,0.002,2982.0,2981.7,3.80408361]
[1752571341911,0.002,2982.0,2981.8,3.35363171]
[1752571342710,0.002,2982.0,2981.9,3.35356651]
[1752571342911,0.002,2982.0,2981.8,3.35363925]
[1752571343576,0.002,2982.0,2981.5,3.52117418]
[1752571343893,0.8027,2981.9,2981.5,0.1672]
[1752571344093,5.5454,2981.8,2981.4,13.35404109]
[1752571344279,5.7126,2981.8,2981.4,13.35404109]
[1752571344481,5.7126,2981.8,2981.5,3.35400025]
[1752571344681,5.7126,2981.8,2981.3,10.0]
[1752571344682,5.2702,2981.8,2981.3,10.0]
[1752571344892,5.7126,2981.8,2981.3,10.4503]
[1752571345121,5.7126,2981.8,2981.4,3.3541252]
[1752571346216,5.7126,2981.8,2981.5,3.3540103]
[1752571346921,5.7126,2981.8,2981.6,3.35389557]
[1752571347277,0.8326,2981.7,2981.4,3.35411869]
[1752571347489,0.8326,2981.7,2981.5,3.35400714]
[1752571347715,0.8326,2981.7,2981.3,3.35418611]
[1752571347915,1.275,2981.7,2981.3,3.35418611]
[1752571348416,0.8326,2981.7,2981.4,3.80441685]
[1752571350480,0.8326,2981.7,2981.3,3.35420374]
[1752571350685,0.8326,2981.7,2981.3,3.80860374]
[1752571351735,1.3018,2981.7,2981.3,3.35420374]
[1752571352191,4.65559834,2981.7,2981.2,3.3543054]
[1752571352392,3.82313217,2981.6,2981.1,10.6216]
[1752571352599,0.4692,2981.5,2981.1,10.1672]
[1752571352835,5.104,2981.5,2981.3,3.35418949]
[1752571353134,5.104,2981.5,2981.4,3.35412893]
[1752571353434,0.1672,2981.6,2981.5,3.35401643]
[1752571353623,5.2712,2981.6,2981.5,3.35401643]
[1752571353809,5.2712,2981.6,2981.5,3.80841643]
[1752571354392,5.2712,2981.6,2981.3,3.80861183]
[1752571354599,5.2712,2981.6,2981.5,3.35401643]
[1752571355142,5.2712,2981.6,2981.5,3.80841643]
[1752571355942,5.104,2981.6,2981.5,3.80841643]
[1752571356564,5.104,2981.6,2981.5,3.97561643]
[1752571356718,0.8306,2981.9,2981.8,3.35367898]
[1752571356924,5.9346,2981.9,2981.8,3.35367898]
[1752571357847,0.8306,2981.9,2981.8,3.35367898]
[1752571358036,5.9346,2981.9,2981.8,3.35367898]
[1752571359396,0.8306,2981.9,2981.8,3.35367898]
[1752571359556,5.9346,2981.9,2981.8,3.35367898]
[1752571360662,0.002,2982.0,2981.9,3.35356651]
[1752571360865,5.106,2982.0,2981.9,3.35356651]
[1752571363294,0.002,2982.0,2981.9,3.35356651]
[1752571363597,1.37370109,2982.6,2982.5,3.35289186]
[1752571363598,0.72339603,2982.6,2982.5,3.35289186]
[1752571363803,5.103,2982.6,2982.5,3.35289186]
[1752571365090,5.103,2982.6,2982.5,3.33501205]
[1752571365996,5.103,2982.6,2982.5,3.35289186]
[1752571367615,1.0038,2982.9,2982.6,3.35272172]
[1752571367906,5.103,2982.8,2982.7,3.35265034]
[1752571368214,0.04,2982.9,2982.8,3.51975464]
[1752571368416,5.143,2982.9,2982.8,3.51975464]
[1752571368702,5.143,2982.9,2982.8,3.97415464]
[1752571369063,5.143,2982.9,2982.8,3.51975464]
[1752571371542,5.143,2982.9,2982.8,3.97415464]
[1752571372244,0.04,2982.9,2982.8,3.97415464]
[1752571374349,0.04,2982.9,2982.8,4.77388514]
[1752571374643,0.002,2983.2,2983.1,4.02271749]
[1752571374845,0.002,2983.2,2983.1,19.15823966]
[1752571374846,1e-08,2983.2,2983.1,19.15823966]
[1752571375046,1e-08,2983.2,2983.1,19.57911749]
[1752571375206,1e-08,2983.2,2983.1,22.76725043]
[1752571376644,1e-08,2983.2,2983.1,22.09575043]
[1752571377150,1e-08,2983.2,2983.1,21.64135043]
[1752571377506,1e-08,2983.2,2983.1,22.09575043]
[1752571379744,1e-08,2983.2,2983.1,22.76625043]
[1752571386075,0.04,2983.9,2983.8,3.35143106]
[1752571386588,0.04,2983.9,2983.8,3.91298522]
[1752571388695,0.04,2983.9,2983.8,10.83097436]
[1752571390113,0.04,2983.9,2983.8,10.64841044]
[1752571390395,0.04,2983.9,2983.8,16.35471044]
[1752571391871,0.04,2983.9,2983.8,4.3377213]
[1752571392075,1.3024,2983.9,2983.8,8.87516714]
[1752571392271,1.3024,2983.9,2983.8,3.77616714]
[1752571392569,1.3024,2983.9,2983.8,0.1672]
[1752571392767,0.8251,2983.8,2983.4,3.35181892]
[1752571393093,0.4349,2983.7,2983.4,3.35181892]
[1752571393676,1.2459,2983.6,2983.3,0.1672]
[1752571393875,0.811,2983.6,2983.3,0.1672]
[1752571394075,0.4349,2983.5,2983.3,0.1672]
[1752571394472,0.811,2983.4,2983.3,0.1672]
[1752571394674,0.811,2983.4,2982.9,0.1672]
[1752571394675,0.811,2983.3,2982.9,0.1672]
[1752571394868,0.9782,2983.5,2983.4,3.3518804]
[1752571395065,0.4349,2983.7,2983.4,3.51906909]
[1752571395066,0.811,2983.7,2983.4,3.51906909]
[1752571395276,0.811,2983.7,2983.5,3.35170926]
[1752571395600,0.4349,2983.6,2983.4,0.1672]
[1752571395975,0.4349,2983.5,2983.4,0.1672]
[1752571396176,0.03252473,2983.5,2983.4,0.1672]
[1752571396369,0.811,2983.7,2983.4,0.1672]
[1752571397178,4.16260247,2983.7,2983.4,0.1672]
[1752571397380,3.3517799,2983.5,2983.0,8.4512565]
[1752571397613,0.8119,2983.4,2983.2,0.1672]
[1752571397776,4.16380683,2983.4,2982.9,3.6033026]
[1752571397975,4.16380683,2983.4,2982.9,3.7705026]
[1752571398398,0.0456,2983.3,2982.9,3.7705026]
[1752571398709,0.0456,2983.3,2982.8,0.1672]
[1752571398710,0.8119,2983.2,2982.8,0.1672]
[1752571399013,0.8119,2983.2,2983.0,3.35227353]
[1752571399586,0.9499,2983.4,2983.2,3.35207068]
[1752571400006,0.9499,2983.4,2983.1,3.35215747]
[1752571400329,0.7827,2983.4,2983.1,3.95946656]
[1752571400730,0.8283,2983.4,2983.1,0.1672]
[1752571401029,5.12481181,2983.4,2983.1,0.1672]
[1752571401229,0.8283,2983.4,2983.1,0.1672]
[1752571402137,0.8303,2983.4,2983.1,0.1672]
[1752571402432,4.18220463,2983.4,2983.1,0.1672]
[1752571402633,3.3976596,2983.3,2983.0,0.001]
[1752571402928,0.7657,2983.2,2983.0,0.001]
[1752571405381,4.1178802,2983.2,2983.0,0.001]
[1752571405580,3.39781749,2983.1,2983.0,0.001]
[1752571406318,0.0456,2983.1,2983.0,0.001]
[1752571406533,6.79580843,2983.2,2983.0,0.001]
[1752571406812,0.0456,2983.1,2983.0,0.001]
[1752571406993,3.39781749,2983.1,2983.0,0.001]
[1752571410519,4.75238208,2983.1,2983.0,0.001]
[1752571412422,1.35456459,2983.1,2983.0,0.001]
[1752571412610,9.3840407,2983.2,2983.0,0.001]
[1752571412812,3.35221749,2983.1,2983.0,0.001]
[1752571413193,3.70061749,2983.1,2983.0,0.001]
[1752571417733,3.35221749,2983.1,2983.0,0.001]
[1752571420643,9.38405957,2983.2,2983.0,0.001]
[1752571421732,3.35221749,2983.1,2983.0,0.001]
[1752571422436,7.34054893,2983.2,2983.0,0.4676]
[1752571422437,5.099,2983.2,2983.0,0.4676]
[1752571424105,5.099,2983.2,2983.1,3.81881749]
[1752571426426,5.099,2983.2,2983.1,0.4666]
[1752571427020,5.9131,2983.2,2983.0,0.001]
[1752571427221,9.26524609,2983.2,2983.0,0.001]
[1752571427626,3.35221749,2983.1,2983.0,0.001]
[1752571427849,0.1672,2983.1,2983.0,0.001]
[1752571429560,3.51941749,2983.1,2983.0,0.001]
[1752571431966,4.06941749,2983.1,2983.0,0.001]
[1752571432165,10.51991265,2983.2,2983.0,0.001]
[1752571432366,4.40420876,2983.1,2983.0,0.001]
[1752571434095,14.10357945,2982.6,2982.5,0.001]
[1752571434450,19.20957945,2982.6,2982.5,0.001]
[1752571434768,5.106,2982.6,2982.5,0.4676]
[1752571435068,5.106,2982.6,2982.5,0.8496662]
[1752571435375,5.108,2982.7,2982.6,3.35271312]
[1752571435579,5.108,2982.7,2982.6,3.81931312]
[1752571435770,5.109,2982.9,2982.8,3.35254442]
[1752571435966,5.109,2982.9,2982.8,3.81915464]
[1752571436277,5.11,2983.0,2982.8,3.81910397]
[1752571436588,5.11,2983.0,2982.9,0.4666]
[1752571438255,0.002,2983.4,2982.9,3.81898087]
[1752571438585,5.109,2983.3,2983.1,3.35218716]
[1752571438881,5.109,2983.3,2983.2,0.4666]
[1752571440262,0.002,2983.4,2983.2,0.4666]
[1752571440460,5.11,2983.4,2983.3,0.4494]
[1752571441723,5.11,2983.4,2983.3,3.80139275]
[1752571442006,0.002,2983.4,2983.3,10.72647117]
[1752571442166,0.002,2983.4,2983.3,4.24858203]
[1752571443204,0.002,2983.4,2983.1,0.6705]
[1752571443366,0.002,2983.4,2983.3,0.4494]
[1752571443996,0.002,2983.4,2983.1,0.1672]
[1752571444202,3.35393627,2983.4,2982.8,3.35252122]
[1752571444405,5.8697,2983.3,2982.7,0.4494]
[1752571444565,3.35221749,2983.1,2982.8,0.1672]
[1752571444765,8.46234373,2983.0,2982.8,0.1672]
[1752571445299,3.35244225,2982.9,2982.5,0.001]
[1752571445599,9.44167741,2983.0,2982.6,0.4494]
[1752571445898,9.44167741,2983.0,2982.7,3.35259887]
[1752571445899,5.2772,2983.0,2982.7,3.35259887]
[1752571446106,5.2772,2983.0,2982.8,0.4494]
[1752571446465,5.2772,2983.0,2982.9,0.4494]
[1752571447014,5.2772,2983.0,2982.9,3.80184225]
[1752571447516,0.1692,2983.4,2983.1,3.35212483]
[1752571447815,5.114,2983.3,2983.2,0.4494]
[1752571448016,5.114,2983.3,2983.2,3.96870512]
[1752571449381,0.002,2983.4,2983.3,3.35199275]
[1752571449581,0.002,2983.4,2983.2,0.1672]
[1752571449814,0.002,2983.4,2983.2,3.96868848]
[1752571450005,0.002,2983.4,2983.3,0.4494]
[1752571451295,0.002,2983.4,2983.3,3.80139275]
[1752571451501,0.002,2983.4,2983.3,0.4494]
[1752571455005,0.002,2983.4,2983.3,3.80139275]
[1752571455319,0.002,2983.4,2983.3,6.02230273]
[1752571458983,0.002,2983.4,2983.3,11.13030273]
[1752571461187,0.002,2983.4,2983.3,0.4494]
[1752571461810,0.002,2983.4,2983.3,3.80139275]
[1752571464231,0.002,2983.4,2983.3,0.4494]
[1752571465402,0.002,2983.4,2983.2,5.108]
[1752571465741,0.002,2983.4,2983.2,5.5574]
[1752571465943,0.002,2983.4,2983.2,0.4494]
[1752571468808,0.002,2983.4,2983.3,0.4494]
[1752571469121,0.002,2983.4,2983.3,3.80139275]
[1752571469519,0.002,2983.4,2983.3,0.4494]